bitfinex-derivatives/quotes_ETHF0:USTF0_20250504
["timestamp","ask_amount","ask_price","bid_price","bid_amount"]
[1746336743147,3.06251301,1844.7,1844.6,1.6337]
[1746336743952,3.06251134,1844.7,1844.6,1.6337]
[1746336744550,1.97849134,1844.7,1844.6,1.6337]
[1746336745050,3.2078,1844.8,1844.6,1.6337]
[1746336745347,2.70917,1845.4,1845.1,1.08378]
[1746336745348,1.5718,1845.2,1845.1,1.08378]
[1746336745545,1.5718,1845.2,1845.1,3.2078]
[1746336745950,1.5718,1845.2,1845.1,7.6338]
[1746336746244,2.65553,1845.2,1845.1,4.6324]
[1746336746445,4.04083,1845.2,1845.1,1.4246]
[1746336747253,1.08378,1845.1,1845.0,3.688]
[1746336747551,2.65558,1845.1,1845.0,3.688]
[1746336747750,7.65558,1845.1,1845.0,3.688]
[1746336748151,10.86338,1845.1,1845.0,3.688]
[1746336748351,14.56138,1845.1,1845.0,3.688]
[1746336749551,9.56138,1845.1,1845.0,3.688]
[1746336751854,1.5718,1845.1,1845.0,6.8958]
[1746336752154,1.3853,1845.2,1845.0,7.97963]
[1746336752354,1.3853,1845.2,1845.1,3.0377]
[1746336753553,1.5802,1845.3,1845.1,3.0377]
[1746336753754,1.5802,1845.3,1845.1,4.4514]
[1746336753954,2.66387,1845.3,1845.2,1.638]
[1746336754156,2.66387,1845.3,1845.2,5.326]
[1746336756150,2.66387,1845.3,1845.2,3.688]
[1746336757261,1.5802,1845.3,1845.2,3.688]
[1746336757464,2.7081,1846.1,1845.2,15.5928]
[1746336757762,2.71328,1845.7,1845.4,3.2078]
[1746336757969,1.6298,1845.6,1845.4,3.2078]
[1746336758161,3.1394,1845.6,1845.4,3.688]
[1746336758466,1.08355,1845.5,1845.4,3.688]
[1746336758662,2.71335,1845.5,1845.4,3.688]
[1746336760172,4.09135,1845.5,1845.4,3.688]
[1746336761977,12.78835,1845.5,1845.4,0.20030865]
[1746336762474,12.78835,1845.5,1845.4,8.65e-06]
[1746336762772,7.78835,1845.5,1845.4,8.65e-06]
[1746336771976,4.09135,1845.5,1845.4,8.65e-06]
[1746336776978,2.71335,1845.5,1845.4,8.65e-06]
[1746336777179,1.08353,1845.6,1845.4,8.65e-06]
[1746336777371,1.08353,1845.6,1845.4,1.67300865]
[1746336777871,1.08355,1845.5,1845.4,1.67300865]
[1746336778266,1.08355,1845.5,1845.4,8.65e-06]
[1746336778675,7.76195,1845.5,1845.4,8.65e-06]
[1746336781181,2.66245,1845.5,1845.4,8.65e-06]
[1746336782478,1.5789,1845.5,1845.4,1.41730865]
[1746336782680,1.08354,1845.6,1845.4,1.41730865]
[1746336782975,1.08354,1845.6,1845.5,1.6281]
[1746336783180,1.08354,1845.6,1845.5,5.3161]
[1746336783681,4.16405,1845.7,1845.5,5.3161]
[1746336783886,2.74705,1845.7,1845.6,1.4311]
[1746336784381,2.74705,1845.7,1845.6,3.0592]
[1746336784581,2.74705,1845.7,1845.6,1.4311]
[1746336784884,1.08349,1845.6,1845.5,3.688]
[1746336785180,2.68049,1845.6,1845.5,3.688]
[1746336786280,5.88829,1845.6,1845.5,3.688]
[1746336787483,2.68049,1845.6,1845.5,3.688]
[1746336788082,2.68049,1845.6,1845.5,5.3839]
[1746336790473,2.68049,1845.6,1845.5,3.688]
[1746336791284,2.68049,1845.6,1845.5,5.3555]
[1746336792388,2.68049,1845.6,1845.5,3.688]
[1746336793287,2.68049,1845.6,1845.5,5.3555]
[1746336795090,1.08349,1845.6,1845.5,5.3555]
[1746336795291,4.29128,1845.7,1845.5,5.3555]
[1746336795489,4.29128,1845.7,1845.6,1.6951]
[1746336799097,1.08349,1845.6,1845.5,3.688]
[1746336799391,4.29649,1845.6,1845.5,3.688]
[1746336799990,9.29649,1845.6,1845.5,2.44868]
[1746336800191,4.29649,1845.6,1845.5,1.22829]
[1746336802895,1.08373,1845.2,1845.1,10.32967131]
[1746336803099,1.08373,1845.2,1845.1,7.14877131]
[1746336803591,2.77783,1845.2,1845.1,7.14877131]
[1746336804095,1.08378,1845.1,1845.0,3.688]
[1746336804289,2.77788,1845.1,1845.0,3.688]
[1746336804695,3.2078,1845.3,1845.0,3.688]
[1746336804897,1.08373,1845.2,1845.1,3.1218]
[1746336805491,3.2078,1845.3,1845.1,3.1218]
[1746336805699,3.2078,1845.3,1845.2,1.6315]
[1746336806196,1.08353,1845.6,1845.2,11.4032]
[1746336806495,1.08353,1845.6,1845.3,1.4165]
[1746336806797,5.87058,1845.7,1845.4,1.5875]
[1746336806989,1.0835,1845.6,1845.4,3.018]
[1746336807191,1.0835,1845.6,1845.5,1.5875]
[1746336808198,1.0835,1845.6,1845.5,5.2755]
[1746336814506,1.08344,1845.7,1845.5,9.5668]
[1746336814706,1.08344,1845.7,1845.6,1.6614]
[1746336815507,1.08349,1845.6,1845.5,3.688]
[1746336815707,4.19019,1845.6,1845.5,3.688]
[1746336815909,2.68919,1845.6,1845.5,3.688]
[1746336817210,1.08349,1845.6,1845.5,5.2809]
[1746336819514,2.68916,1845.7,1845.5,5.2809]
[1746336819710,2.68916,1845.7,1845.6,1.7213]
[1746336819911,1.08349,1845.6,1845.5,3.688]
[1746336820111,2.71489,1845.6,1845.5,3.688]
[1746336821115,2.71489,1845.6,1845.5,5.4093]
[1746336823612,2.71489,1845.6,1845.5,3.688]
[1746336827817,7.71489,1845.6,1845.5,3.688]
[1746336828212,2.71489,1845.6,1845.5,3.688]
[1746336837824,2.71489,1845.6,1845.5,5.1695]
[1746336838429,2.71489,1845.6,1845.5,3.688]
[1746336845430,2.71489,1845.6,1845.5,2.19029]
[1746336845637,2.71489,1845.6,1845.5,1.05044]
[1746336849341,5.92269,1845.6,1845.5,1e-05]
[1746336855439,6.01699678,1845.6,1845.5,1e-05]
[1746336855942,7.53969837,1845.6,1845.5,1e-05]
[1746336856442,7.53969834,1845.6,1845.5,1e-05]
[1746336856840,1.08373,1845.2,1845.1,1.4815]
[1746336857136,4.29153,1845.2,1845.1,1.4815]
[1746336857741,1.08373,1845.2,1845.1,3.1721]
[1746336860947,5.89273,1845.2,1845.1,3.1721]
[1746336862746,6.17721395,1845.2,1845.1,3.1721]
[1746336863447,6.17721751,1845.2,1845.1,3.1721]
[1746336864552,2.96941751,1845.2,1845.1,3.1721]
[1746336865143,2.68493,1845.2,1845.1,3.1721]
[1746336865349,2.96939244,1845.2,1845.1,3.1721]
[1746336866148,6.17719244,1845.2,1845.1,3.1721]
[1746336866349,7.57169244,1845.2,1845.1,3.1721]
[1746336866945,7.28723,1845.2,1845.1,3.1721]
[1746336867151,7.57168954,1845.2,1845.1,3.1721]
[1746336867351,1.36818954,1845.2,1845.1,3.1721]
[1746336868756,1.36822318,1845.2,1845.1,3.1721]
[1746336870551,1.36827805,1845.2,1845.1,3.1721]
[1746336870747,4.57607805,1845.2,1845.1,1.4815]
[1746336870946,4.57607805,1845.2,1845.0,5.1726]
[1746336870947,1.08378,1845.1,1845.0,1.42242]
[1746336871151,1.08408,1844.6,1844.5,10.17987131]
[1746336871348,0.28454805,1844.6,1844.5,10.17987131]
[1746336871543,3.674,1845.0,1844.5,15.17987131]
[1746336871751,1.36839267,1844.9,1844.6,4.8405]
[1746336872048,1.36840267,1844.8,1844.7,1.6327]
[1746336872249,1.08396,1844.8,1844.7,1.6327]
[1746336872558,0.28445485,1844.8,1844.7,1.6327]
[1746336873258,1.36841485,1844.8,1844.7,5.3207]
[1746336874157,1.36841485,1844.8,1844.7,6.7362]
[1746336877654,1.36852687,1844.8,1844.7,6.7362]
[1746336879461,1.36854372,1844.8,1844.7,6.7362]
[1746336881262,1.08382,1845.1,1844.8,1.08394]
[1746336881558,1.08382,1845.1,1845.0,3.2078]
[1746336881953,1.08382,1845.1,1845.0,6.4108]
[1746336882159,1.08382,1845.1,1845.0,10.0988]
[1746336882662,1.08376,1845.2,1845.0,10.0988]
[1746336882862,1.08376,1845.2,1845.1,1.7177]
[1746336883756,2.49226,1845.2,1845.1,1.7177]
[1746336886167,2.49226,1845.2,1845.0,5.1814]
[1746336886360,1.7291,1845.1,1845.0,5.1814]
[1746336888078,1.7291,1845.1,1845.0,6.8654]
[1746336888465,1.08374,1845.2,1845.0,6.8654]
[1746336888765,4.16701,1845.3,1845.0,6.8654]
[1746336888964,3.0833,1845.3,1845.1,1.7123]
[1746336889262,2.75137,1845.3,1845.1,1.7123]
[1746336889462,2.75137,1845.3,1845.2,1.3954]
[1746336890163,2.75137,1845.3,1845.2,5.0834]
[1746336891363,1.6677,1845.3,1845.2,5.0834]
[1746336891770,2.56012,1845.4,1845.2,5.0834]
[1746336891967,4.19782,1845.4,1845.3,1.6542]
[1746336892265,4.19782,1845.4,1845.3,5.3422]
[1746336894164,5.986,1845.8,1845.3,5.3422]
[1746336894165,3.2078,1846.0,1845.3,16.71834]
[1746336894467,3.1548,1846.1,1845.6,3.2078]
[1746336894764,1.08333,1845.9,1845.7,4.5537]
[1746336895070,1.08337,1845.8,1845.7,8.2417]
[1746336895770,2.58417,1845.8,1845.7,8.2417]
[1746336895967,4.31107,1845.8,1845.7,8.2417]
[1746336896270,4.31107,1845.8,1845.7,3.688]
[1746336900871,7.51887,1845.8,1845.7,3.688]
[1746336901473,12.51887,1845.8,1845.7,3.40341629]
[1746336901765,7.51887,1845.8,1845.7,3.40341629]
[1746336903170,4.31107,1845.8,1845.7,3.40341629]
[1746336904069,7.51887,1845.8,1845.7,3.40341629]
[1746336904569,4.31107,1845.8,1845.7,3.40341629]
[1746336910585,2.81027,1845.8,1845.7,3.40341629]
[1746336910780,2.81027,1845.8,1845.7,5.02471629]
[1746336912180,1.08337,1845.8,1845.7,5.02471629]
[1746336913079,1.08336,1845.9,1845.7,5.02471629]
[1746336913279,1.08336,1845.9,1845.8,3.1007]
[1746336913580,1.08331,1845.9,1845.8,6.3085]
[1746336914085,1.08331,1845.9,1845.8,9.9965]
[1746336919585,1.0833,1846.0,1845.8,9.9965]
[1746336919785,1.0833,1846.0,1845.9,3.1442]
[1746336921086,1.0833,1846.0,1845.9,6.8322]
[1746336922090,2.80013,1846.1,1845.9,6.8322]
[1746336922283,2.80013,1846.1,1846.0,1.6071]
[1746336922487,1.08318,1846.2,1846.0,1.6071]
[1746336922687,1.08318,1846.2,1846.1,1.4776]
[1746336923392,2.65548,1846.2,1846.1,3.0847]
[1746336923789,1.5723,1846.2,1846.1,3.0847]
[1746336928099,1.5723,1846.2,1846.1,4.1679]
[1746336928900,2.65544,1846.2,1846.1,3.0847]
[1746336929100,1.08313,1846.3,1846.1,3.0847]
[1746336929398,1.6565,1846.5,1846.2,10.0444]
[1746336929600,1.6565,1846.5,1846.4,3.2078]
[1746336929996,4.02291,1846.6,1846.4,4.6521]
[1746336930194,1.08292,1846.6,1846.4,9.9726]
[1746336930401,1.08292,1846.6,1846.5,1.6325]
[1746336930795,1.08296,1846.5,1846.4,8.3401]
[1746336931099,2.73946,1846.5,1846.4,8.3401]
[1746336932999,2.73946,1846.5,1846.4,6.8958]
[1746336933299,5.94726,1846.5,1846.4,3.688]
[1746336933495,10.94726,1846.5,1846.4,3.688]
[1746336934101,13.85816,1846.5,1846.4,3.688]
[1746336935200,5.65036,1846.5,1846.4,3.688]
[1746336935804,4.5674,1846.5,1846.4,3.688]
[1746336936300,5.65036,1846.5,1846.4,3.688]
[1746336936999,4.5674,1846.5,1846.4,3.688]
[1746336937806,4.5674,1846.5,1846.4,6.8958]
[1746336938007,4.5674,1846.5,1846.4,8.5417]
[1746336940103,5.65036,1846.5,1846.4,8.5417]
[1746336943515,2.73946,1846.5,1846.4,8.5417]
[1746336944812,2.73946,1846.5,1846.4,6.8958]
[1746336945215,2.73946,1846.5,1846.4,3.688]
[1746336947216,5.94726,1846.5,1846.4,3.688]
[1746336947517,10.94726,1846.5,1846.4,3.688]
[1746336948218,5.94726,1846.5,1846.4,3.688]
[1746336952318,2.73946,1846.5,1846.4,3.688]
[1746336952922,5.94726,1846.5,1846.4,1.17063]
[1746336953118,1.08326,1846.0,1845.9,1.4998]
[1746336954028,1.08326,1846.0,1845.9,3.1328]
[1746336954326,1.08326,1846.0,1845.9,6.8208]
[1746336955027,2.79546,1846.0,1845.9,6.8208]
[1746336956529,2.79546,1846.0,1845.9,3.688]
[1746336956730,4.33996,1846.0,1845.9,3.688]
[1746336958731,4.33996,1846.0,1845.9,0.91489]
[1746336958934,1.08343,1845.7,1845.6,3.2078]
[1746336959238,1.08349,1845.6,1845.5,3.688]
[1746336959429,2.68689,1845.6,1845.5,3.688]
[1746336961534,3.2078,1845.9,1845.5,3.688]
[1746336961834,3.2078,1846.1,1845.7,3.2078]
[1746336962136,4.29103,1846.1,1845.8,1.72]
[1746336962434,1.08327,1846.0,1845.8,1.72]
[1746336962629,4.29104,1846.1,1845.8,1.72]
[1746336963034,1.08324,1846.1,1845.9,3.2078]
[1746336963231,1.08324,1846.1,1846.0,4.6954]
[1746336964238,1.08324,1846.1,1846.0,8.3834]
[1746336964535,1.08324,1846.1,1846.0,13.3834]
[1746336964738,1.08324,1846.1,1846.0,8.3834]
[1746336964940,1.6958,1846.4,1846.0,8.3834]
[1746336965238,1.08314,1846.2,1846.1,4.82]
[1746336970239,1.08313,1846.3,1846.1,4.82]
[1746336970433,1.08313,1846.3,1846.2,1.6559]
[1746336971243,1.08306,1846.4,1846.2,5.3439]
[1746336971547,1.6452,1846.5,1846.3,3.2078]
[1746336971845,2.72816,1846.5,1846.4,1.4677]
[1746336972050,2.72816,1846.5,1846.4,3.1956]
[1746336972239,2.72816,1846.5,1846.4,6.8836]
[1746336974647,1.6452,1846.5,1846.4,6.8836]
[1746336975149,1.0828,1846.8,1846.5,1.08294]
[1746336975342,1.5944,1846.9,1846.6,1.5992]
[1746336975645,2.67717,1846.9,1846.6,1.5992]
[1746336975848,2.67717,1846.9,1846.6,2.6821]
[1746336976141,1.5944,1846.8,1846.6,2.68209]
[1746336976542,1.5944,1846.8,1846.7,1.5992]
[1746336977151,2.67719,1846.8,1846.7,5.2872]
[1746336977347,1.5944,1846.8,1846.7,5.2872]
[1746336977646,2.67719,1846.8,1846.7,3.688]
[1746336980553,1.5944,1846.8,1846.7,3.688]
[1746336980754,2.67719,1846.8,1846.7,3.688]
[1746336982459,10.88499,1846.8,1846.7,3.688]
[1746336984154,9.53199,1846.8,1846.7,3.688]
[1746336984653,5.88499,1846.8,1846.7,3.688]
[1746336986250,10.88499,1846.8,1846.7,3.688]
[1746336986450,10.88499,1846.8,1846.7,1.14244]
[1746336987158,1.0831,1846.3,1846.1,14.4878]
[1746336987455,1.08314,1846.2,1846.1,8.5758]
[1746336988051,1.08312,1846.3,1846.1,8.5758]
[1746336988255,2.79152,1846.3,1846.1,8.5758]
[1746336988557,1.08314,1846.2,1846.1,8.5758]
[1746336988761,2.79154,1846.2,1846.1,8.5758]
[1746336994061,2.79154,1846.2,1846.1,6.8598]
[1746336995664,1.0832,1846.1,1846.0,5.1231]
[1746336995870,2.7667,1846.1,1846.0,6.764]
[1746336996059,4.7562,1846.6,1846.0,6.764]
[1746336996258,1.08308,1846.3,1846.2,3.2078]
[1746336996566,1.08308,1846.3,1846.2,4.8487]
[1746336996762,1.6835,1846.5,1846.2,4.8487]
[1746336996966,1.08306,1846.4,1846.3,1.6409]
[1746336998063,1.6835,1846.5,1846.3,1.6409]
[1746336998260,1.08302,1846.4,1846.3,5.3289]
[1746336999169,4.29082,1846.4,1846.3,3.688]
[1746336999362,12.93782,1846.4,1846.3,0.28507]
[1746336999867,12.93782,1846.4,1846.3,1e-05]
[1746337000167,1.08336,1845.9,1845.7,7.14877131]
[1746337000559,1.658,1845.8,1845.7,7.14877131]
[1746337001268,1.658,1845.8,1845.7,10.83677131]
[1746337001767,2.74137,1845.8,1845.7,10.83677131]
[1746337002068,3.0893,1845.8,1845.7,10.83677131]
[1746337002667,1.658,1845.8,1845.7,12.51087131]
[1746337003067,1.658,1845.8,1845.7,5.3621]
[1746337003766,2.74137,1845.8,1845.7,5.3621]
[1746337004072,1.658,1845.8,1845.7,5.3621]
[1746337004664,2.74137,1845.8,1845.7,5.3621]
[1746337004974,1.658,1845.8,1845.7,5.3621]
[1746337005268,2.74137,1845.8,1845.7,5.3621]
[1746337008367,1.08337,1845.8,1845.7,5.3621]
[1746337012269,2.58827,1845.8,1845.7,5.3621]
[1746337012566,2.58827,1845.8,1845.7,3.688]
[1746337013071,4.28907,1845.8,1845.7,3.688]
[1746337013868,2.78417,1845.8,1845.7,3.688]
[1746337014368,2.78417,1845.8,1845.7,5.2799]
[1746337014674,2.78417,1845.8,1845.7,3.688]
[1746337016177,7.78417,1845.8,1845.7,3.688]
[1746337016477,9.26057,1845.8,1845.7,3.688]
[1746337017771,9.26057,1845.8,1845.7,2.36095]
[1746337018174,1.08367,1845.3,1845.2,1.7013]
[1746337018881,1.08373,1845.2,1845.1,3.2078]
[1746337019076,2.65843,1845.2,1845.1,3.2078]
[1746337020178,2.65843,1845.2,1845.1,6.3473]
[1746337020882,2.65843,1845.2,1845.1,3.2078]
[1746337021788,1.08373,1845.2,1845.1,3.2078]
[1746337021981,1.08373,1845.2,1845.1,4.7843]
[1746337022978,1.08373,1845.2,1845.1,3.2078]
[1746337024385,1.08378,1845.1,1845.0,3.688]
[1746337024583,5.67628,1845.1,1845.0,3.688]
[1746337025286,4.24968,1845.1,1845.0,3.688]
[1746337025687,2.79638,1845.1,1845.0,3.688]
[1746337031287,6.00418,1845.1,1845.0,3.688]
[1746337031682,2.79638,1845.1,1845.0,3.688]
[1746337032289,6.00418,1845.1,1845.0,3.688]
[1746337033088,2.79638,1845.1,1845.0,3.688]
[1746337036586,6.1498,1845.3,1845.0,3.688]
[1746337036890,1.08378,1845.1,1845.0,9.4406]
[1746337038493,1.08378,1845.1,1845.0,6.2328]
[1746337038896,1.08378,1845.1,1845.0,3.688]
[1746337041497,4.29158,1845.1,1845.0,3.688]
[1746337041692,4.29158,1845.1,1845.0,1.14127]
[1746337042185,1.08402,1844.7,1844.6,1.2064]
[1746337042689,6.3538,1844.9,1844.5,8.1679]
[1746337042690,1.6362,1844.8,1844.5,8.1679]
[1746337042992,1.08408,1844.6,1844.5,8.1679]
[1746337044593,3.2078,1844.9,1844.5,8.1679]
[1746337044801,1.08405,1844.7,1844.5,8.1679]
[1746337045002,1.7226,1844.8,1844.5,8.1679]
[1746337045196,1.08408,1844.6,1844.5,8.1679]
[1746337045396,1.08407,1844.7,1844.5,8.1679]
[1746337045598,3.64,1844.9,1844.5,8.1679]
[1746337045802,1.08401,1844.8,1844.7,3.2078]
[1746337046099,1.08401,1844.8,1844.7,6.8958]
[1746337052101,1.08401,1844.8,1844.7,3.688]
[1746337052306,3.62061,1844.8,1844.7,3.688]
[1746337052809,6.82841,1844.8,1844.7,3.688]
[1746337053005,10.46841,1844.8,1844.7,3.688]
[1746337055005,7.26061,1844.8,1844.7,3.688]
[1746337055708,3.62061,1844.8,1844.7,3.688]
[1746337056205,6.82841,1844.8,1844.7,3.688]
[1746337056405,8.38771,1844.8,1844.7,3.688]
[1746337061302,5.17991,1844.8,1844.7,3.688]
[1746337061501,8.38771,1844.8,1844.7,3.688]
[1746337062313,5.17991,1844.8,1844.7,3.688]
[1746337062510,8.38771,1844.8,1844.7,3.688]
[1746337067111,1.0842,1844.4,1844.3,1.5798]
[1746337068209,1.0842,1844.4,1844.3,5.2678]
[1746337070918,2.71006,1844.7,1844.3,5.2678]
[1746337070919,2.71006,1844.7,1844.3,8.4756]
[1746337071110,1.08418,1844.5,1844.4,1.6862]
[1746337072217,1.08418,1844.5,1844.4,5.3742]
[1746337072408,2.29898,1844.5,1844.4,5.3742]
[1746337078726,1.0841,1844.6,1844.4,5.3742]
[1746337078926,1.0841,1844.6,1844.5,2.9383]
[1746337079117,1.0841,1844.6,1844.5,7.8852]
[1746337082522,1.08405,1844.7,1844.5,11.093]
[1746337082720,1.08405,1844.7,1844.6,1.7304]
[1746337085530,1.08388,1845.0,1844.7,1.084]
[1746337085826,1.0839,1844.9,1844.8,2.911]
[1746337086329,1.0839,1844.9,1844.8,6.599]
[1746337086729,2.6978,1844.9,1844.8,6.599]
[1746337089223,2.6978,1844.9,1844.8,4.8999]
[1746337089424,2.6978,1844.9,1844.8,3.688]
[1746337090025,5.9056,1844.9,1844.8,3.688]
[1746337090332,2.6978,1844.9,1844.8,3.688]
[1746337091426,10.9056,1844.9,1844.8,3.688]
[1746337092734,5.9056,1844.9,1844.8,3.688]
[1746337093633,10.9056,1844.9,1844.8,3.688]
[1746337094633,5.9056,1844.9,1844.8,3.688]
[1746337097338,5.9056,1844.9,1844.3,1.2685]
[1746337097339,1.0842,1844.4,1844.3,1.2685]
[1746337097839,1.0842,1844.4,1844.3,2.8845]
[1746337098137,1.0842,1844.4,1844.3,6.5725]
[1746337099835,1.08418,1844.5,1844.3,6.5725]
[1746337100139,1.08418,1844.5,1844.4,1.5778]
[1746337100638,2.79848,1844.5,1844.4,1.5778]
[1746337101137,2.79848,1844.5,1844.4,5.2658]
[1746337101340,1.08418,1844.5,1844.4,5.2658]
[1746337101541,1.08418,1844.5,1844.4,6.5681]
[1746337106240,1.08418,1844.5,1844.4,3.688]
[1746337106937,2.79008,1844.5,1844.4,3.688]
[1746337115144,7.79008,1844.5,1844.4,2.45344]
[1746337115551,2.79008,1844.5,1844.4,2.45344]
[1746337116250,1.08437,1844.1,1844.0,3.2078]
[1746337117255,3.65397,1844.1,1844.0,3.2078]
[1746337118658,1.08443,1844.0,1843.9,1.7122]
[1746337118853,2.75993,1844.0,1843.9,1.7122]
[1746337119251,2.75993,1844.0,1843.9,5.4002]
[1746337121059,2.75993,1844.0,1843.9,8.608]
[1746337122457,2.75993,1844.0,1843.9,3.688]
[1746337123161,1.08449,1843.9,1843.8,1.301]
[1746337123357,1.08449,1843.9,1843.8,3.0191]
[1746337124660,1.08446,1844.0,1843.8,3.0191]
[1746337124857,1.08446,1844.0,1843.9,1.7181]
[1746337125059,1.08446,1844.0,1843.9,2.9333]
[1746337125954,1.08442,1844.1,1843.9,2.9333]
[1746337126155,1.08442,1844.1,1844.0,1.5777]
[1746337126354,1.08443,1844.0,1843.9,4.9032]
[1746337126562,1.08443,1844.0,1843.9,6.4809]
[1746337127056,1.08443,1844.0,1843.9,2.7929]
[1746337131171,1.6284,1844.1,1843.9,2.7929]
[1746337131370,2.71277,1844.1,1844.0,1.6368]
[1746337137773,1.08449,1843.9,1843.8,4.5088]
[1746337137980,1.08449,1843.9,1843.8,6.0766]
[1746337143583,1.6529,1844.0,1843.8,6.0766]
[1746337143886,1.08448,1844.0,1843.9,2.8575]
[1746337145877,2.81552,1844.1,1843.9,3.94199]
[1746337146077,2.81552,1844.1,1844.0,1.6687]
[1746337146479,1.7311,1844.1,1843.8,4.5088]
[1746337146679,1.08449,1843.9,1843.8,4.5088]
[1746337147181,2.34069,1843.9,1843.8,4.5088]
[1746337147678,3.59599,1843.9,1843.8,4.5088]
[1746337148085,3.59599,1843.9,1843.8,3.2078]
[1746337151189,7.28399,1843.9,1843.8,3.2078]
[1746337152086,2.81558,1844.0,1843.8,3.2078]
[1746337152289,2.81558,1844.0,1843.8,6.1712]
[1746337152586,1.6183,1843.9,1843.8,6.1712]
[1746337153384,1.6183,1843.9,1843.8,7.25575]
[1746337153591,1.6183,1843.9,1843.8,6.1712]
[1746337153784,1.08445,1844.0,1843.8,7.25575]
[1746337153984,1.08443,1844.0,1843.9,1.6113]
[1746337154282,2.71053,1844.0,1843.9,2.8728]
[1746337159000,2.71053,1844.0,1843.9,1.6113]
[1746337159198,1.08449,1843.9,1843.8,5.53265]
[1746337159498,2.79009,1843.9,1843.8,7.24905]
[1746337160996,1.08449,1843.9,1843.8,7.24905]
[1746337161191,4.1693,1844.1,1843.8,6.1645]
[1746337161397,1.08443,1844.0,1843.9,2.64436]
[1746337161796,2.69052,1844.1,1843.9,2.64436]
[1746337162497,2.69052,1844.1,1844.0,3.2078]
[1746337162797,2.69052,1844.1,1844.0,5.96633]
[1746337163306,2.69052,1844.1,1844.0,4.8819]
[1746337164106,2.69052,1844.1,1844.0,5.96633]
[1746337165405,1.6061,1844.1,1844.0,5.96633]
[1746337166412,1.6061,1844.1,1844.0,2.75853]
[1746337166611,1.6061,1844.1,1844.0,5.96633]
[1746337167213,2.5674,1844.3,1844.0,5.96633]
[1746337167510,1.08437,1844.2,1844.0,4.8819]
[1746337167810,2.69477,1844.2,1844.1,1.08437]
[1746337168314,1.6104,1844.2,1844.1,1.08437]
[1746337169314,2.69471,1844.2,1844.1,1.08437]
[1746337170609,2.69471,1844.2,1844.0,4.8819]
[1746337170914,2.69471,1844.2,1844.0,5.96629]
[1746337171416,2.69471,1844.2,1844.1,1.08437]
[1746337171814,2.69471,1844.2,1844.0,5.96629]
[1746337172514,1.6907,1844.1,1844.0,5.96629]
[1746337175012,2.77507,1844.1,1844.0,5.96629]
[1746337175613,1.6907,1844.1,1844.0,5.96629]
[1746337176916,2.77507,1844.1,1844.0,5.96629]
[1746337181621,1.6907,1844.1,1844.0,5.96629]
[1746337182522,2.77507,1844.1,1844.0,5.96629]
[1746337183421,1.6907,1844.1,1844.0,5.96629]
[1746337184725,2.77507,1844.1,1844.0,5.96629]
[1746337188624,1.6907,1844.1,1844.0,5.96629]
[1746337189125,2.77507,1844.1,1844.0,5.96629]
[1746337190527,1.6907,1844.1,1844.0,5.96629]
[1746337192529,2.77507,1844.1,1844.0,4.29219]
[1746337193723,2.77507,1844.1,1844.0,3.2078]
[1746337193931,1.08443,1844.0,1843.9,7.14877131]
[1746337194230,5.36263,1844.0,1843.9,7.14877131]
[1746337196029,5.68321045,1844.0,1843.9,7.14877131]
[1746337196931,5.68321045,1844.0,1843.8,4.29234]
[1746337197133,2.01358045,1843.9,1843.8,4.29234]
[1746337197331,3.09807045,1843.9,1843.8,4.29234]
[1746337197727,2.77749,1843.9,1843.8,4.29234]
[1746337197934,3.09797312,1843.9,1843.8,4.29234]
[1746337199629,3.09797312,1843.9,1843.8,3.2078]
[1746337200231,6.78597312,1843.9,1843.8,3.2078]
[1746337201126,3.09797312,1843.9,1843.8,3.2078]
[1746337205736,3.09766053,1843.9,1843.8,3.2078]
[1746337207236,1.08456,1843.8,1843.7,3.2078]
[1746337207439,2.97063053,1843.8,1843.7,4.8438]
[1746337207640,2.97058938,1843.8,1843.7,4.8438]
[1746337209334,2.97056762,1843.8,1843.7,4.8438]
[1746337210338,0.32010762,1843.8,1843.7,5.92841]
[1746337210537,1.5716,1844.1,1843.8,1.08454]
[1746337210737,1.40454803,1844.0,1843.9,4.4347]
[1746337210940,1.40454803,1844.0,1843.9,7.3714]
[1746337211140,1.40452521,1844.0,1843.9,7.3714]
[1746337211441,1.40452756,1844.0,1843.9,7.3714]
[1746337212035,1.40452756,1844.0,1843.9,8.45589]
[1746337212242,1.40452594,1844.0,1843.9,8.45589]
[1746337212539,1.08448,1844.0,1843.9,7.3714]
[1746337213545,1.0844,1844.1,1843.9,7.3714]
[1746337213748,1.0844,1844.1,1844.0,1.6262]
[1746337213935,1.40443837,1844.1,1844.0,1.6262]
[1746337214449,0.32003837,1844.1,1844.0,2.71063]
[1746337214638,0.32003481,1844.1,1844.0,2.71063]
[1746337215038,0.32003481,1844.1,1844.0,6.39863]
[1746337215343,3.57752,1844.4,1844.0,8.9272]
[1746337215545,5.16592,1844.4,1844.3,3.2078]
[1746337215740,3.89751702,1844.4,1844.3,3.2078]
[1746337216539,3.89744459,1844.4,1844.3,3.2078]
[1746337218247,3.89738416,1844.4,1844.3,3.2078]
[1746337219444,2.81316416,1844.4,1844.3,3.2078]
[1746337220144,2.8130626,1844.4,1844.3,3.2078]
[1746337221251,2.8130626,1844.4,1844.3,4.29205]
[1746337221855,2.81297736,1844.4,1844.3,4.29205]
[1746337222246,2.81294677,1844.4,1844.3,4.29205]